Workbook

Sheet SAF23秋季学期访学（赴海外学习）
A1: SAF本科生海外名校交流项目 （学期/学年项目） | B1: 国家 | C1: 世界大学排名 | D1: 优势学科/项目特色 | E1: 注册学院 | F1: 申请要求 | J1: 2023年秋季 文件截止日期 | K1: 2023春季费用,2023秋季费用暂未发布 （美国美元，英国英镑，澳大利亚澳币，IES 项目美元计）
F2: TOEFL | G2: IELTS | H2: Duolingo | I2: GPA | K2: 时长 | L2: 基础项目费 | M2: 住宿 | N2: 保险 | O2: 总计 | P2: 描述
A3: Harvard University 哈佛大学 | B3: 美国 | C3: 2023U.S. News第1位 | D3: • 计算机科学、物理与天文学、生物科学、数学、工程学、应用计算、生物医学工程、化学、进化生物学 • 经济学、心理学、哲学、历史、语言学、英语与文学、政治与国际关系、法律学、教育学、社会政策及管理 | E3: 人文科学院 | F3: 100 | I3: 3 | J3: 2023-03-03 | K3: 学期 | L3: 32,700 | M3: 6,090 | N3: 2,200 | O3: =SUM(L3:N3) -> 40,990 | P3: 每学期共16学分； 校外学生公寓双人间，共享卫浴
A4: University of Oxford 牛津大学 | B4: 美国 | C4: 2023年THE 第1位 | D4: • 生物医学、生物、化学、计算机科学、地球科学、工程、心理学、数学、物理 • 经济学、法学、政治学、地理学 • 英文、历史、古希腊罗马文学、音乐、哲学、现代语言学 | E4: 圣安学院 | F4: TOEFL 110（L22；R24；S25；W24） | G4: IELTS 7.5 (各单项不低于7.0) | I4: 3.7/4.0 | J4: 2023-01-23 | K4: 学期 | L4: 12,760 | M4: 2,530 | N4: 330 | O4: 15,620 | P4: 2-3门课一学期； 校属学生宿舍单人间，共享卫浴
A5: Univeristy of California, Berkeley_ Humanities & Social Science 加州大学伯克利分校(人文社科） | B5: 美国 | C5: 2022U.S. News第4位 | D5: • 经济学、认知科学、人类学、法律研究、语言学、英语、比较文学、法语、德语、希伯来语、音乐、哲学 • 天文学、化学工程、地球和行星科学 、能源与资源、工业工程、机械工程、生物学、统计数据、土木工程 | E5: Extension注册 | F5: 90+面试 | G5: 7+面试 或CET-6 520+面试 | H5: 115+面试 | I5: 3 | J5: 2023-05-01 | K5: 学期 | L5: 13,600 | M5: 7,015 | N5: 1000 | O5: =SUM(L5:N5) -> 21,615 | P5: 每个学期12个学分；校外住宿三人间；共享卫浴
A6: 有机会申请最高2000美金SAF-Berkeley 奖学金 Univeristy of California, Berkeley_ Multidisciplinary 加州大学伯克利分校（多学科项目） | B6: 美国 | C6: 2022U.S. News第4位 | D6: • 全科开放（部分专业有限制） • 为学生提供1学分职业发展指导课程，帮助学生对未来职业规划或海外申研做好准备 • 学生有机会在交流期间申请伯克利科研项目 | E6: Extension注册 | F6: 90或 CET-4 550+测试 | G6: 7或 CET-6 520+ 测试 | H6: 115 | I6: 3 | J6: 2023-04-14 | K6: 学期 | L6: 18,550 | M6: 7,015 | N6: 1000 | O6: =SUM(L6:N6) -> 26,565 | P6: 每个学期12个学分；校外住宿三人间；共享卫浴
A7: Univeristy of California, Berkeley_ Entrepreneur & Tech 加州大学伯克利分校(创业与科技） | B7: 美国 | C7: 2022U.S. News第4位 | D7: • 由顶尖教授和行业大咖共同教授的创新型、项目制学习课程。适合对工程、科技创新创业相关知识有兴趣的本科高年级学生 • 课程内容前沿并贴合实际，涵盖将新型技术投入商业应用及建立创业公司所涉及的各种技术及商业相关知识 • 提供课程如：科技创业、数据科学的企业应用、挑战实验室、产品设计、产品管理等 | E7: Extension注册 | F7: 90+远程面试 | G7: 7+远程面试 | I7: 3 | J7: 2023-04-14 | K7: 学期 | L7: 19,650 | M7: 7,015 | N7: 1,000 | O7: =SUM(L7:N7) -> 27,665 | P7: 每学期12个学分创业与科技课程； 校外住宿三人间，共享卫浴
A8: Univeristy of California, Berkeley_ Bioscience 加州大学伯克利分校(生命科学） | B8: 美国 | C8: 2022U.S. News第4位 | D8: • 2022年U.S. News 生命科学排名：3 • 为生物、生命科学专业的学生提供在全美排名前3的生命科学系所进行一学期、一学年专业课程学习 • 为学生提供申请科研工作的指导和相应岗位的信息；一般每个学期有 20%的学生可获得科研的工作机会 •可在综合生物学、分子学及细胞生物学下选课 | E8: Extension注册 | F8: 90+面试 或CET-4 550+面试 | G8: 7+面试 或CET-6 520+面试 | H8: 115+面试 | I8: 3 | J8: 2023-04-14 | K8: 学期 | L8: 13,600 | M8: 7,015 | N8: 1,000 | O8: =SUM(L8:N8) -> 21,615 | P8: 每个学期12个学分；校外住宿三人间，共享卫浴
A9: Univeristy of California, Berkeley_ English Lit 加州大学伯克利分校(英语） | B9: 美国 | C9: 2022U.S. News第4位 | D9: • 2022 年U.S. News 英语专业排名：1 • 为英语文学专业的学生提供在美国排名第一的英语系进行一学期、一学年专业课程学习 | E9: Extension注册 | F9: 90+面试 或CET-4 550+面试 | G9: 7+面试 或CET-6 520+面试 | H9: 115+面试 | I9: 3 | J9: 2023-04-14 | K9: 学期 | L9: 13,600 | M9: 7,015 | N9: 1,000 | O9: =SUM(L9:N9) -> 21,615 | P9: 每个学期12个学分；校外住宿三人间，共享卫浴
A10: 有机会申请最高5000美金SAF-Berkeley 奖学金 Univeristy of California, Berkeley_ -Haas Global Access 加州大学伯克利分校（哈斯商学院方向） | B10: 美国 | C10: 2022U.S. News第4位 | D10: •哈斯商学院是美国最顶尖的商学院之一，它在金融，国际商务，非赢利机构管理，创业等方面颇具特色。在2022年的US News全美最佳商学院排名中，哈斯商学院高居全美第八 • 提供课程如：谈判及冲突解决；机会识别:硅谷的技术与创业；国际贸易；商务沟通等 •为学生提供企业参访及座谈会/定期学术午餐/职业发展指导等活动 | E10: Extension注册 | F10: 90或 CET-4 550+测试 | G10: 7或 CET-6 520+ 测试 | H10: 115 | I10: 3 | J10: 2023-04-14 | K10: 学期 | L10: 24,700 | M10: 7,015 | N10: 1,000 | O10: =SUM(L10:N10) -> 32,715 | P10: 每学期13学分; 校外住宿三人间，共享卫浴
A11: 有机会申请最高5000美金SAF-Berkeley 奖学金 Univeristy of California, Berkeley_ Chemistry 加州大学伯克利分校（化学精英） | B11: 美国 | C11: 2022U.S. News第4位 | D11: • 化学学院在世界化学领域处于顶尖位置，其化学专业在US News名列世界第2；化学学院的师生至今共产生了14为诺贝尔奖获得者 • 学生可以选择计算化学方向或化学生物学方向课程 • 为学生提供研究生项目申请指导/交流会/科研培训/实验室及公司参访等活动 | E11: Extension注册 | F11: 90或 CET-4 550+测试 | G11: 7或 CET-6 520+ 测试 | I11: 3 | J11: 2023-04-14 | K11: 学期 | L11: 26,850 | M11: 7,015 | N11: 1000 | O11: =SUM(L11:N11) -> 34,865 | P11: 每个学期12个学分；校外住宿三人间，共享卫浴
A12: Univeristy of California, Berkeley_ Physics 加州大学伯克利分校（物理） | B12: 美国 | C12: 2022U.S. News第4位 | D12: • 2022 年U.S. News 全美大学物理学排名：2 • 学生每学期可以修读物理学院 12 学分课程（3 门课程） • 为学生提供研究生项目申请指导/交流会/科研培训/实验室及公司参访等活动 | E12: Extension注册 | F12: 90或CET-4 550 | G12: 7或CET-6 520 | I12: 3 | J12: 2023-04-14 | K12: 学期 | L12: 25,850 | M12: 7,015 | N12: 1000 | O12: =SUM(L12:N12) -> 33,865 | P12: 每个学期12个学分；校外住宿三人间，共享卫浴
A13: Univeristy of California, Berkeley_ Global Engineering 加州大学伯克利分校（全球工程） | B13: 美国 | C13: 2022U.S. News第4位 | D13: • 加州大学伯克利分校工程学院成立于1931年，全美工程学院排名前3 •为学生提供新生指导/一对一的学术指导/申研指导等活动 | E13: Extension注册 | F13: 90+远程面试 或语言测试 | G13: 7+远程面试 或语言测试 | I13: 3.3 | J13: 2023-04-14 | K13: 学期 | L13: 26,850 | M13: 7,015 | N13: 1000 | O13: =SUM(L13:N13) -> 34,865 | P13: 每个学期12个学分；校外住宿三人间，共享卫浴
A14: Columbia University 哥伦比亚大学 （本科项目-哥大本科生院渠道） | B14: 美国 | C14: 2022U.S. News第6位 | D14: • 计算机科学、计算机科学与电气工程、计算机科学与运筹学、应用化学、应用物理、数学、统计、生物化学、生物医学工程、化学工程、土木工程、建筑学、建筑管理、地球和环境科学、电气和机械工程 、 • 金融、商科、市场营销、管理学、经济学、会计学、精算学、保险管理、认知科学、传播学、教育学、历史、国际事务、法学、语言学、社会学 • 电影、新闻、舞蹈 | E14: 哥大本科生学院 | F14: 105 | G14: 7.5 | I14: 3 | J14: 2023-04-14 | K14: 学期 | L14: 38,300 | M14: 6,855 | N14: 2,750 | O14: 47,905 | P14: 每学期12-16学分，校外公寓双人间
A15: University College London 伦敦大学学院 | B15: 英国 | C15: 2022年QS第8位 | D15: • 建筑学、城市规划、土木、环境与地质工程、电子与电气工程 、计算机科学、生物医学工程、生物化学工程、化学工程、 • 管理学、经济学、统计学、教育学、哲学、语言学、英语语言和文学、历史、艺术史、心理学 | E15: 各专业学院 | F15: 92-110 | G15: 6.5-8.0 | H15: N.A | I15: 3.5 | J15: 2023-03-03 | K15: 学期 | L15: 15,150 | M15: 5,140 | N15: 400 | O15: =SUM(L15:N15) -> 20,690 | P15: 每学期共60学分; 校属宿舍单人间，共享卫浴
A16: Johns Hopkins University 约翰霍普金斯大学 | B16: 美国 | C16: 2022U.S. News第9位 | D16: • 生物学、生物医学、生物医学工程、环境工程、电子工程、计算机科学、物理学、数学、人文学、经济学、机械工程、材料工程、化学工程 | E16: 各专业学院 | F16: 100 (阅读 26、听力 26、口语 25、写作 22) | G16: 7 | H16: 125 | I16: 3 | J16: 2023-03-17 | K16: 学期 | L16: 29,050 | M16: 6,645 | N16: 1,400 | O16: =SUM(L16:N16) -> 37,095 | P16: 每学期12学分; 校属住宿单人间；共享卫浴
A17: University of Pennsylvania 宾夕法尼亚大学 | B17: 美国 | C17: 2023U.S. News第13位 | D17: •会计、金融、商业、管理研究、通信、媒体研究、心理学、解剖学和生理学、语言学、统计和运筹学、教育 | E17: LPS部门 | F17: 100 | G17: 7 | H17: 120 | I17: 3.3 | J17: 2023-04-21 | K17: 学期 | L17: 21,850 | M17: 7,425 | N17: 2,500 | O17: =SUM(L17:N17) -> 31,775 | P17: 每学期4门课程; 校内住宿单人间
A18: Univeristy of California, Los Angeles 加州大学洛杉矶分校 | B18: 美国 | C18: 22年软科第13位 | D18: •英语文学、社会学、数学、化学、统计、政治学、地理学、人类学、传播学、物理学 | E18: Extension注册 | F18: 80-100 | G18: 6.5-7 | H18: 105-120 | I18: 3 | J18: 2023-04-14 | K18: 学期 | L18: 10,900 | M18: 5,125 | N18: 500 | O18: =SUM(L18:N18) -> 16,525 | P18: 每学期12学分; 校外住宿双人间，共享卫浴
A19: University of Edinburgh 爱丁堡大学 | B19: 英国 | C19: 2023QS第15位 | D19: •商业研究、会计、经济学、 •社会政策、英语文学、欧洲语言和文化（法语、德语、西班牙语研究、俄语研究）法学、哲学、音乐、历史、心理学、 • 生物医学科学、化学工程、土木工程、地球科学、生态学、电子与电子工程、机械工程、数学、物理学和天文学 | E19: 各专业学院 | F19: 92 （单项 20） | G19: 6.5 （单项5.5） | I19: 3 | J19: 2023-04-14 | K19: 学期 | L19: 11,350 | M19: 2,600 | N19: 400 | O19: =SUM(L19:N19) -> 14,350 | P19: 每学期共60学分; 校属公寓单人间，共享卫浴
A20: Univeristy of California, San Diego 加州大学圣地亚哥分校 | B20: 美国 | C20: 2022 U.S. News第21位 | D20: • 数据科学、电子与计算机工程、化学工程/纳米工程、机械和航天工程、认知科学 | E20: Extension注册 | F20: 79- 95 | G20: 6.5-7 | H20: 95-115 | I20: 3.3 | J20: 2023-05-12 | K20: 学期 | L20: 11,500 | M20: 3,625 | N20: 700 | O20: =SUM(L20:N20) -> 15,825 | P20: 每学期12学分; 校外住宿双人间;共享卫浴
A21: University of Michigan，Ann Arbor 密歇根大学安娜堡分校 | B21: 美国 | C21: 2022QS第23位 | D21: • 会计、金融、营销、组织行为、运营管理、航空/太空/宇航工程、机械工程、工业工程、材料工程、计算机工程 | E21: 人文科学院 | F21: 100 (R 23, L 23, W 21, S 21) | G21: 7.0 (单项不低于6.5) | H21: N.A | I21: 3 | J21: 2023-02-17 | K21: 学期 | L21: 33,100 | M21: 4,460 | N21: 800 | O21: =SUM(L21:N21) -> 38,360 | P21: 每学期12-18学分; 校外宿舍三人间; 共享卫浴
A22: University of Manchester 曼彻斯特大学 | B22: 英国 | C22: 2022QS第27位 | D22: • 商科、生命科学、工程专业、人类学、经济学、社会学、社会科学、土木工程、计算机科学 | E22: 各专业学院 | F22: 80-100 | G22: 6.0-7.0 | H22: N.A | I22: 3 | J22: 2023-04-21 | K22: 学期 | L22: 12,250 | M22: 2,470 | N22: 400 | O22: =SUM(L22:N22) -> 15,120 | P22: 每学期共60学分; 校属宿舍单人间，共享卫浴
A23: University of Queensland 昆士兰大学 | B23: 澳大利亚 | C23: 2022U.S. News第36位 | D23: • 运动、教育学、工程学、计算机科学与信息系统、经济学、物理、商业 、旅游与服务、管理学 | E23: 各专业学院 | F23: 87（Writing 21, Reading, Speaking, Listening 19） | G23: 6.5 单项6.0 | I23: 3 | J23: 2023-04-21 | K23: 学期 | L23: 16,800 | M23: 8,790 | N23: 550 | O23: =SUM(L23:N23) -> 26,140 | P23: 每学期4门课共8-10个UQ学分，校外学生公寓单人间
A24: University of Amsterdam 阿姆斯特丹大学 | B24: 荷兰 | C24: 2022U.S. News第38位 | D24: • 阿姆斯特丹大学的媒体传播专业位居世界第1 • 考古学和古代研究、艺术与文化研究、英语语言和文化、欧洲研究、语言文学与文化研究、媒体研究、哲学 • 传播学、儿童发展与教育、人类学与发展、社会学、 人文地理、政治学、城市研究 | E24: 人文社科学院 | F24: 90 （单项不低于22） | G24: 6.5（单项不低于6.0） | H24: N.A | I24: 3 | J24: 2023-04-13 | K24: 学期 | L24: 13,900 | M24: 5,460 | N24: 250 | O24: =SUM(L24:N24) -> 19,610 | P24: （美元计价） 每学期15学分;住宿费用基于校外学生公寓双人间标准，共享卫浴
A25: University of New South Wales 新南威尔士大学 | B25: 澳大利亚 | C25: 2023QS第45位 | D25: • 会计学和金融学、工商管理学、经济学、法学、心理学、建筑学 | E25: 各专业学院 | F25: 90 | G25: 6.5 单项6.0 | I25: 3 | J25: 2020-10-17 | K25: 学期 | L25: 14,500 | M25: 10,710 | N25: 500 | O25: =SUM(L25:N25) -> 25,710 | P25: 每学期共24个UNSW学分，校属学生公寓双人间，共卫浴
A26: The London School of Economics and Political Science 伦敦政治经济学院 | B26: 英国 | C26: 2022 年QS第49位 | D26: • 政治学、经济学、金融学、新闻传播学、公共政策学、地理学 | E26: 各专业学院 | F26: 100 (W 27, R 25, L 24, S 24) | G26: 7.0 (单项不低于7.0) | H26: N.A | I26: 3.3-3.5 | J26: 2023-04-07 | K26: 学年 | L26: 27,000 | M26: 10,050 | N26: -310 | O26: =SUM(L26:N26) -> 36,740 | P26: 每个学期2门课，校属宿舍单人间，共享卫浴
A27: The London School of Economics and Political Science 伦敦政治经济学院（英语文学及语言学学分项目） | B27: 英国 | C27: 2022 年QS第49位 | D27: •Discourse and Commnication 语篇及沟通 •English Literature and Society 英语文学和社会 •Modern Language (French, German, Mandarin, Russian, Spanish) 现代语言（法语、德语、中文、俄语、西班牙语） •Society and Language 社会和语言 | E27: 各专业学院 | F27: 100 (W 27, R 25, L 24, S 24) | G27: 7.0 (单项不低于7.0) | H27: N.A | I27: 3.3-3.5 | J27: 2023-04-07 | K27: 学年 | L27: 27,000 | M27: 10,050 | N27: -310 | O27: =SUM(L27:N27) -> 36,740 | P27: 每个学期2门课，校属宿舍单人间，共享卫浴
A28: University of Bristol 布里斯托大学 | B28: 英国 | C28: 2023QS第61位 | D28: • 社会科学、地理学、环境科学、物理、数学、计算机科学、法律、化学、教育学、公共健康、土木工程、机械工程 | E28: 各专业学院 | F28: 90 （单项20） | G28: 6.5 （单项6.0） | H28: 115（单项不低于105） | I28: 3.2 | J28: 2023-03-24 | K28: 学期 | L28: 11,900 | M28: 2,550 | N28: 400 | O28: =SUM(L28:N28) -> 14,850 | P28: 每学期共60学分; 校内宿舍单人间，共享卫浴
A29: Univeristy of California, Santa Barbara 加州大学圣塔芭芭拉分校 | B29: 美国 | C29: 2023U.S. News第67位 | D29: • 生物、经济、心理学、政治科学、信息、计算机科学、地理学、机械工程、法律和社会学、计算机工程 | E29: Extension注册 | F29: 80 或CET-4 530 | G29: 6.5 或CET-6 500 | H29: 105 | I29: 2.8 | J29: 2023-04-28 | K29: 学期 | L29: 11,200 | M29: 5,935 | N29: 100 | O29: =SUM(L29:N29) -> 17,235 | P29: 每学期12学分; 校外住宿双人间; 含部分餐食
A30: University of California, Davis 加州大学戴维斯分校 | B30: 美国 | C30: 2023U.S. News第67位 | D30: •农业科学、食品科学与工程 、环境学 /生态学、生物与化学、心理学、微生物学、分子生物与遗传学、 空间科学 | E30: 各个学院 | F30: 71-80 或CET4 493 | G30: 6.0-7.0 或CET6 450 | H30: Duolingo 105 | I30: 3 | J30: 2023-04-14 | K30: 学期 | L30: 待定 | M30: 待定 | N30: 待定 | O30: 待定 | P30: 每学期12学分; 寄宿家庭单人间; 含部分餐食
A31: Yonsei University 延世大学 | B31: 韩国 | C31: 2023QS第73位 | D31: • 数学、物理、化学、电气电子学、机器人学 • 教育学、经济学、统计学、社会学、行政学、新闻学 | E31: 各专业学院 | F31: 79 或KLAT level 4 | G31: 65 或TOPIK level 4 | I31: 3 | J31: 2023-03-31 | K31: 学期 | L31: 9,600 | M31: 1,450 | N31: 450 | O31: =SUM(L31:N31) -> 11,500 | P31: 本科学生修读9-18学分课程，研究生是9-15学分 ；校属住宿双人间
A32: University of Glasgow 格拉斯哥大学 | B32: 英国 | C32: 2023QS 81位 | D32: •计算机科学、机械工程学、工程学、土木工程学、电子电气工程、航空和制造工程学、农业与林业学生物科学、动物科学、化学、物理和天文、数学、地理和环境科 •经济学、会计和金融、艺术史、戏剧、舞蹈和动画、音乐、法律学、社会学、心理学、意大利语、地质学、艺术与设计、学、政治学 | E32: 各专业学院 | F32: 80 （阅读 18，听力 17，口语 20，写作 17），接受托福家考 | G32: 6 单项5.5 | I32: 3 | J32: 2023-04-14 | K32: 学期 | L32: 12,000 | M32: 3,130 | N32: 400 | O32: =SUM(L32:N32) -> 15,530 | P32: 每学期共60学分; 校属宿舍单人间，共享卫浴
A33: Trinity College Dublin 都柏林圣三一大学 | B33: 爱尔兰 | C33: 2022QS 第101位 | D33: •商科、经济学、教育学、英语、欧洲研究、法语、性别研究、历史、艺术史、法学、哲学、政治科学、心理学、社会学 •计算机科学与统计、工程学、遗传学、生物化学与免疫学、生物学、植物学、环境科学、化学、地理学、数学、微生物学、药剂学、物理学、动物学 | E33: 各专业学院 | F33: 90 | G33: 6.5 | H33: N.A | I33: 3.3 | J33: 2023-03-30 | K33: 学期 | L33: 18,350 | M33: 5,460 | N33: 250 | O33: =SUM(L33:N33) -> 24,060 | P33: （美元计价） 每学期15学分;注意：工程专业、健康管理专业课程可能有额外费用产生。 校内住宿双人间;共卫浴（不含餐）。
A34: University of Oregon 俄勒冈大学 | B34: 美国 | C34: 2022年U.S. News美国最佳大学排名第99位 | D34: •建筑、艺术、建筑和设计、艺术史、园林建筑学、 城市规划 •教育学 、新闻传播学、 •商科、市场营销、经济学、体育商业、会计学 | E34: 各专业学院 | F34: 61 | G34: 6 | I34: 2.5/4.0 （建筑专业 3.0/4.0） | J34: 2023-03-31 | K34: 学期 | L34: 16,400 | M34: 5,130 | N34: 1,150 | O34: =SUM(L34:N34) -> 22,680 | P34: 每学期12学分; 校内住宿双人间;共享卫浴， 含部分Meal plan
A35: Univeristy of California, Riverside 加州大学河滨分校 | B35: 美国 | C35: 2021 U.S. News第158位 | D35: •农业科学、植物科学、生物科学、数学、心理学、化学、统计学 | E35: Extension注册 | F35: 80 | G35: 6.5 | H35: 100 | I35: 3 | J35: 2023-04-14 | K35: 学期 | L35: 10,800 | M35: 3,675 | N35: 900 | O35: =SUM(L35:N35) -> 15,375 | P35: 每学期12学分; 校属标准双人间; 共享卫浴。
A36: American University 美利坚大学 | B36: 美国 | C36: 2019U.S. News 第78位 | D36: •国际商务、数据科学专业、税务 | E36: 各专业学院 | F36: 80 | G36: 6.5 | H36: N.A | I36: 3 | J36: 2023-02-24 | K36: 学期 | L36: 18,100 | M36: 6,580 | N36: 1,400 | O36: =SUM(L36:N36) -> 26,080 | P36: 每学期12学分; 校外宿舍双人间; 共享卫浴
A37: Michigan State University 密歇根州立大学 | B37: 美国 | C37: 2022U.S. News第108位 | D37: •通信与传播学、经济学、教育、英语、金融、会计、社会学、精算学、广告 •计算机工程、计算机科学、地球科学、电气工程、环境地球科学、地质科学、化学工程、化学物理、土木工程、生物学、天体物理学 | E37: 各专业学院 | F37: 79 | G37: 6.5 | H37: 105 | I37: 3 | J37: 2023-04-07 | K37: 学期 | L37: 15,000 | M37: 5,550 | N37: 1,650 | O37: =SUM(L37:N37) -> 22,200 | P37: 每学期12学分; 校内住宿双人间;共卫浴。 含部分餐食。
A38: University of Westminster 西敏寺大学 | B38: 英国 | C38: NA | D38: 学校拥有享誉世界的环球十大新闻传媒学院之一。2020QS世界大学学科排名中位列全英第6，全世界第31 | E38: 各专业学院 | F38: 78-88 CET4 493 | G38: 6.0-7.0 CET6 450 | H38: 115 （单项不低于100） | I38: 3 | J38: 2023-04-07 | K38: 学期 | L38: 11,700 | M38: 4,780 | N38: 400 | O38: 16,880 | P38: 每学期3-4门课，共60学分; 校内宿舍单人间，共享卫浴
A39: University of the Arts London 伦敦艺术大学 | B39: 英国 | C39: 2021年艺术设计QS第2位 | D39: 由六间教授艺术、设计、时尚和媒体的学院组成。伦敦艺术大学是欧洲最大的艺术、设计、媒体传达和表演艺术的教育机构,是全世界最优秀的艺术学院之一，是艺术教育界的哈佛、剑桥。 •平面设计、插画、室内与空间设计、电脑艺术、绘画、油画、摄影、雕塑 •广告、动画、商业摄影、计算机动画与视觉效果、当代媒体文化、艺术指导设计、新闻、设计管理、 电影与银幕研究、电影与电视、游戏设计、音乐制作 •建筑、制陶艺术、文化、批评与策展、时尚传播:历史与理论、时装设计:针织服装、珠宝设计、纺织设计 | E39: 各专业学院 | F39: 80 (W 18, R 17, L 17, S 20) 一些专业要求更高的英语成绩 | G39: 6.0（单项不低于5.5） | H39: N.A | I39: 3 | J39: 2023-04-21 | K39: 学期 | L39: 14,000 | M39: 5,280 | N39: 400 | O39: =SUM(L39:N39) -> 19,680 | P39: 每个学期40学分，校属宿舍单人间，共享卫浴
A40: School of Knowledge Economy and Management SKEMA商学院 | B40: 法国 | C40: 《L'Etudiant》大学生报2021年全法最佳商学院排名全法第5位 | D40: KEMA是法国SAI五校联考成员、法国高等精英商校联盟CGE成员。同时，学校是全球少于1%同时获得EQUIS、AACSB、AMBA三大商科权威认证的顶级商学院之一，全球最早开设奢侈品与时尚管理、创业与创新、项目管理专业的高等院校之一。 •企业金融、市场营销、奢侈品牌管理、创业与工商管理、人工智能、国际商务、供应链、电子商务和数字化战略 会计、可持续发展与社会责任、工程科学与创新管理 | E40: SKEMA商学院 | F40: 79 | G40: 6.5 | H40: N.A | I40: 3 | J40: 2023-04-13 | K40: 学期 | L40: 10,900 | M40: 4,310 | N40: 250 | O40: 15,460 | P40: （美元计价） 每学期15学分； 住宿费用基于校外学生公寓双人间标准，共享卫浴（不含餐）
A41: San Jose State University 圣何塞州立大学 | B41: 美国 | C41: 加州州立大学系统排名第1 | D41: •生物工程、化学工程、材料工程、土木与环境工程、计算机工程、电子工程、工业及系统工程、机械和航天工程、软件工程 •经济学、心理学、历史学、会计、企业财务管理、创业学、国际商务、管理信息系统、市场营销 | E41: 各专业学院 | F41: 71 （工程专业80） | G41: 6 （工程专业6.5） | H41: 110 （工程专业120） | I41: 3 | J41: 2023-03-31 | K41: 学期 | L41: 10,800 | M41: 6,040 | N41: 820 | O41: =SUM(L41:N41) -> 17,660 | P41: 每学期12学分; 校属住宿双人间;共享卫浴。
A42: Arizona State University 亚利桑那州立大学 | B42: 美国 | C42: 2022U.S. News第165位 | D42: •商科、供应链管理、城市管理、公共事业、物流管理、社会学、考古、英语、中学教育、心理学、新闻传播 •计算机科学、电气与电子工程、航空和航天工程、信息系统 | E42: 各专业学院 | F42: 61 工程79 | G42: 5.5 工程6.5 | H42: 95 工程105 | I42: 3 | J42: 2023-03-31 | K42: 学期 | L42: 21,600 | M42: 5,235 | N42: 2,100 | O42: =SUM(L42:N42) -> 28,935 | P42: 每学期12学分; 校外学生公寓
A43: Nanzan University 南山大学 | B43: 日本 | D43: •日语语言课程、人文社科课程、研讨课程 | E43: IES和各个学院 | F43: 75 | G43: 5.5 | H43: (JLPT) N2 level | I43: 3 | J43: 2023-03-09 | K43: 学期 | L43: 14,150 | M43: 4,570 | N43: 250 | O43: =SUM(L43:N43) -> 18,970 | P43: （美元计价） 每学期15学分； 住宿费用基于校属住宿双人间标准，共享卫浴（不含餐）
A44: IES Paris French Studies 法国大学联合项目 | B44: 法国 | C44: N.A | D44: • 学生需要从IES中心选择4个必修法语语言课程学分，其他学分可以从合作的海外大学选择（法语授课）： 巴黎第四大学、巴黎天主教学院、巴黎高等师范音乐学院巴黎马莱舞蹈学校巴士底艺术学校 | E44: IES和各个学院 | F44: 60 | G44: 6 | J44: 2023-04-27 | K44: 学期 | L44: 13,450 | M44: 3,810 | N44: 250 | O44: =SUM(L44:N44) -> 17,510 | P44: 法语要求：4个学期的大学法语基础；课程开始前一年内需修读法语课程；每学期修15-19学分； Homestays单人间，公用卫浴和厨房；或学生公寓不含餐
A45: Washington Semester Program 华盛顿实习项目 | B45: 美国 | C45: N.A | D45: • 开设8个实习方向供选择： 美国政治方向、外交政策、全球商贸、国际法与组织、新闻与新媒体、公正与法律、公共卫生政策、可持续性发展 | E45: 美利坚大学 | F45: 80 （口语和听力不低于20） | G45: 6.5 （单项不低于6.0）/ | H45: 115 （单项不低于105） | I45: 3 | J45: 2023-02-24 | K45: 学期 | L45: 13,250 | M45: 6,580 | N45: 1,400 | O45: =SUM(L45:N45) -> 21,230 | P45: 无学分; 校内住宿双人间; 共享卫浴；如需学分，费用不一样。 具体请咨询SAF老师。
A47: 备注：1、部分学校接受晚申请，如果在申请截止后申请，请具体询问SAF工作人员； 2、SAF大部分项目都包含学期语言项目，详情请咨询SAF工作人员
